Workbook

Sheet Intro
B2: ARPEL REFINERIES CONFIGURATION DATABASE
B3: Last update - August 2013
B6: Description
B7: * This file contains the Refineries Configuration of ARPEL member companies.
B8: * Tables were prepared by the Refining Committee specialists and they show the capacity of the processes that are carried out during crude oil refining in each oil refinery.
B9: * The file contains a Pivot table which show the current configuration of all refineries -and a sheet with the "notes" to the information displayed in the pivot table-
B10: * It is highly recommended not to modify the pivot table layout if you are not experienced on the tool. In that case just use the default filters.

Sheet Pivot
A2: Refineries Config. (2012)
A4: * Use the default filters -grey buttons with a downward arrow- to get the desired information and layout
A6: Company | B6: (Todas)
A7: Country | B7: (Todas)
A9: Suma de Capacity (bbl/d) | B9: Etiquetas de columna
A10: Etiquetas de fila | B10: ARG - La Plata | C10: ARG - Luján de Cuyo | D10: ARG - Plaza Huincul | E10: ARG - Campana | F10: BOL - Gualberto Villarroel | G10: BOL - Guillermo Elder Bell | H10: CHI - ConCon | I10: CHI - BioBio | J10: CHI - Gregorio | K10: CRI - Moín | L10: ECU - Esmeralda | M10: ECU - La Libertad | N10: ECU - Sushufundi | O10: SAL - Acajutla | P10: JAM - Kingston | Q10: NIC - MANREF | R10: PAR - Paraguay | S10: PER - Talara | T10: PER - Conchan | U10: PER - Iquitos | V10: PER - El Milagro | W10: PER - La Pampilla | X10: RDO - Haina | Y10: SUR - Paramaribo | Z10: T&T - Pointe-à-Pierre | AA10: URU - La Teja | AB10: COL - Barrancabermeja | AC10: COL - Cartagena | AD10: COL - Apiay | AE10: COL - Orito | AF10: MEX - Ref. "Ing. Antonio M. Amor" (Salamanca, Guanajuato) | AG10: MEX - Ref. "Ing. Antonio Dovalí Jaime" (Salina Cruz, Oaxaca) | AH10: MEX - Ref. "Miguel Hidalgo" (Tula, Hidalgo) | AI10: MEX - Ref. "Ing. Héctor R. Lara Sosa" (Cadereyta, Nvo. León) | AJ10: MEX - Ref. "Francisco I. Madero", (Cd. Madero, Tamaulipas) | AK10: MEX - Ref. "Gral. Lázaro Cárdenas" (Minatitlán, Veracruz) | AL10: BRA - REMAN | AM10: BRA - LUBNOR | AN10: BRA - RLAM | AO10: BRA - RGAP | AP10: BRA - REDUC | AQ10: BRA - RPBC | AR10: BRA - REPLAN | AS10: BRA - REVAP | AT10: BRA - RECAP | AU10: BRA - REPAR | AV10: BRA - REFAP | AW10: Total general
A11: a. Crude Distillation
A12: a.1 Atmospheric Crude Distillation | B12: 189000 | C12: 105500 | D12: 25000 | E12: 90000 | F12: 39800 | G12: 19500 | H12: 100640 | I12: 113220 | J12: 15720 | K12: 25000 | L12: 110000 | M12: 45000 | N12: 20000 | O12: 22000 | P12: 36000 | Q12: 21000 | R12: 7500 | S12: 62000 | T12: 13500 | U12: 10500 | V12: 1700 | W12: 107000 | X12: 33861 | Y12: 7000 | Z12: 175000 | AA12: 50000 | AB12: 250000 | AC12: 80000 | AD12: 2500 | AE12: 1800 | AF12: 245000 | AG12: 330000 | AH12: 315000 | AI12: 275000 | AJ12: 190000 | AK12: 335000 | AL12: 45911 | AM12: 7552 | AN12: 286153 | AO12: 150994 | AP12: 239020 | AQ12: 169811 | AR12: 372327 | AS12: 251731 | AT12: 53459 | AU12: 201280 | AV12: 188679 | AW12: 5436658
A13: a.2 Vacuum Distillation | B13: 64500 | C13: 66000 | E13: 50000 | F13: 2200 | H13: 55980 | I13: 50320 | K13: 1200 | L13: 45300 | O13: 4000 | Q13: 1600 | S13: 28200 | T13: 9000 | W13: 60000 | Z13: 131000 | AA13: 20000 | AB13: 108000 | AF13: 137500 | AG13: 180000 | AH13: 136800 | AI13: 128000 | AJ13: 128500 | AK13: 152000 | AL13: 8679 | AN13: 132777 | AO13: 81760 | AP13: 116994 | AQ13: 81134 | AR13: 188679 | AS13: 125794 | AU13: 93721 | AV13: 37736 | AW13: 2427374
A14: b. Conversion
A15: b.1 Catalytic Cracking | B15: 59800 | C15: 23900 | E15: 27900 | H15: 31450 | I15: 20100 | L15: 18000 | S15: 19000 | W15: 13500 | Z15: 35000 | AB15: 105000 | AC15: 29000 | AF15: 40000 | AG15: 80000 | AH15: 80000 | AI15: 90000 | AJ15: 60500 | AK15: 72000 | AL15: 3147 | AN15: 31446 | AO15: 42769 | AP15: 47200 | AQ15: 62893 | AR15: 100629 | AS15: 88056 | AU15: 57898 | AV15: 21384 | AW15: 1260572
A16: b.2 Resid Cat Cracking | AA16: 12000 | AN16: 62890 | AT16: 22013 | AV16: 44025 | AW16: 140928
A17: b.3 Hydrocracking (Mild Conversion) | C17: 18000 | H17: 20000 | I17: 35220 | Z17: 55000 | AW17: 128220
A18: b.4 Coking -- Delayed | B18: 34700 | C18: 40627 | E18: 25000 | H18: 22640 | I18: 15100 | AI18: 54000 | AJ18: 50000 | AK18: 55800 | AO18: 23902 | AQ18: 32390 | AR18: 74214 | AV18: 12579 | AW18: 440952
A19: b.5 Coking -- Fluid
A20: b.6 Visbreaking | H20: 9999.51 | I20: 10060 | K20: 6500 | L20: 31500 | W20: 27000 | Y20: 2700 | Z20: 30000 | AA20: 7000 | AB20: 24000 | AC20: 25000 | AG20: 50000 | AH20: 41000 | AW20: 264759.51
A21: c. Upgrading
A22: c.1 H-Oil | AF22: 18500 | AH22: 50000 | AW22: 68500
A23: c.2 HDH
A24: c.3 Alkylation (Product basis) | C24: 2800 | H24: 1100 | Z24: 8700 | AB24: 4500 | AF24: 3400 | AG24: 14500 | AH24: 7700 | AI24: 11100 | AJ24: 9000 | AK24: 26800 | AQ24: 2893 | AW24: 92493
A25: c.4 Polymerization | AK25: 2200 | AW25: 2200
A26: c.5 C5/C6 Isomerization | B26: 6800 | C26: 3472 | G26: 3200 | H26: 5400 | I26: 5000 | L26: 2700 | Z26: 7400 | AA26: 6000 | AF26: 12000 | AG26: 15000 | AH26: 15000 | AI26: 12000 | AJ26: 10600 | AK26: 15000 | AW26: 119572
A27: c.6 Catalytic Reforming -- Low Pressure | F27: 8172 | G27: 3200 | H27: 12580 | I27: 13520 | L27: 10000 | Z27: 28000 | AA27: 12000 | AB27: 9500 | AF27: 47300 | AG27: 20000 | AH27: 35000 | AI27: 46000 | AJ27: 30000 | AK27: 20000 | AW27: 295272
A28: c.7 Catalytic Reforming -- Medium Pressure | B28: 10200 | C28: 10377 | D28: 2600 | E28: 11000 | K28: 1300 | P28: 3700 | AG28: 30000 | AH28: 30000 | AK28: 27000 | AW28: 126177
A29: c.8 Catalytic Reforming -- High Pressure | G29: 3200 | W29: 1700 | X29: 6239 | AP29: 11951 | AQ29: 11000 | AW29: 34090
A30: d. Hydrotreating
A31: d.1 Gasoline/Naphtha Hydrotreating | B31: 36700 | C31: 14880 | E31: 17700 | F31: 8172 | G31: 3200 | H31: 39870 | I31: 33460 | K31: 1200 | L31: 13000 | P31: 6800 | W31: 2700 | Z31: 28000 | AA31: 18000 | AF31: 61500 | AG31: 65000 | AH31: 73000 | AI31: 61500 | AJ31: 52000 | AK31: 63400 | AP31: 11951 | AQ31: 11000 | AW31: 623033
A32: d.2 Kerosene Hydrotreating | K32: 2200 | P32: 7500 | X32: 14665 | Z32: 18000 | AG32: 50000 | AH32: 100000 | AI32: 25000 | AJ32: 15000 | AO32: 11321 | AP32: 34591 | AS32: 40883 | AW32: 319160
A33: d.3 Distillate Hydrotreating | B33: 14900 | C33: 20376 | E33: 14300 | H33: 44000 | I33: 36170 | L33: 24500 | P33: 9500 | Z33: 12000 | AA33: 4500 | AF33: 53000 | AG33: 50000 | AH33: 48000 | AI33: 60000 | AJ33: 25000 | AK33: 76000 | AO33: 49685 | AP33: 25157 | AQ33: 34591 | AR33: 67296 | AS33: 40883 | AU33: 34613 | AV33: 25157 | AW33: 769628
A34: d.4 Residual Desulfurization
A35: d.5 Gas Oil Desulfurization | H35: 9500 | Z35: 40000 | AB35: 23000 | AI35: 40000 | AJ35: 49800 | AK35: 50000 | AW35: 212300
A36: e. Hydrogen (k scf/d)
A37: e.1 Hydrogen Generation | C37: 21190 | H37: 40000 | I37: 34000 | Z37: 30000 | AB37: 22000 | AF37: 16500 | AI37: 588 | AJ37: 420 | AK37: 480 | AM37: 1236 | AN37: 892 | AO37: 20653 | AP37: 29120 | AQ37: 29860 | AR37: 55984 | AS37: 10451 | AU37: 9535 | AV37: 21153 | AW37: 344062
A38: e.2 Purification | H38: 0 | I38: 11000 | X38: 3050 | AP38: 1880 | AW38: 15930
A39: f. Other
A40: f.1 Aromatic Solvent Extraction | B40: 11700 | F40: 720 | AB40: 5000 | AQ40: 6920 | AW40: 24340
A41: f.2 Other Aromatic Process | AB41: 4000 | AW41: 4000
A42: f.3 C4 Isomerization | AH42: 2500 | AJ42: 2600 | AW42: 5100
A43: f.4 Solvent Desaphalting | B43: 9600 | F43: 166 | AB43: 45000 | AN43: 3773 | AP43: 42772 | AS43: 42770 | AU43: 32096 | AW43: 176177
A44: f.5 Lubes & Waxes | B44: 4900 | F44: 512 | AB44: 2553.333333 | AF44: 30500 | AM44: 1076 | AN44: 5221 | AP44: 13712 | AW44: 58474.33333
A45: f.6 Asphalt & Bitumen Manufacture | B45: 7500 | F45: 37 | K45: 1200 | P45: 2000 | Y45: 100 | AB45: 9000 | AH45: 5000 | AI45: 15000 | AJ45: 18000 | AW45: 57837
A46: f.7 Sulfur Recovery Unit (tonnes/day) | B46: 54 | C46: 54 | H46: 110 | I46: 80 | L46: 63 | Z46: 100 | AB46: 64 | AC46: 30 | AF46: 240 | AG46: 240 | AH46: 1000 | AI46: 600 | AJ46: 710 | AK46: 680 | AN46: 72 | AO46: 73 | AP46: 104 | AQ46: 70 | AR46: 212 | AS46: 85 | AT46: 9 | AU46: 70 | AV46: 98 | AW46: 4818
A47: g. Fractionation
A48: g.1 Propane/Propylene Splitter | H48: 3130 | I48: 7200 | AF48: 4000 | AI48: 7500 | AW48: 21830
A49: g.2 Deisobutanizer | C49: 5740 | AK49: 70000 | AW49: 75740
A50: g.3 Deisopentanizer | F50: 1350 | G50: 800 | L50: 2700 | AW50: 4850
A51: g.4 Deisohexanizer | F51: 1350 | I51: 0 | AN51: 9254 | AW51: 10604
A52: g.5 Alkylate Splitter | H52: 1100 | AW52: 1100
A53: g.6 Reformate Splitter | F53: 2950 | G53: 2916 | P53: 7500 | AQ53: 2893 | AW53: 16259
A54: g.7 Cat Cracked Gasoline Splitter | B54: 30000 | C54: 26790 | E54: 30000 | H54: 20400 | I54: 14000 | AW54: 121190
A55: h. Oxygenates
A56: h.1 MTBE | B56: 1400 | C56: 1321 | E56: 1400 | H56: 1530 | Z56: 1000 | AF56: 1100 | AG56: 800 | AH56: 2200 | AI56: 3000 | AJ56: 2500 | AP56: 1261 | AR56: 2079 | AS56: 1572 | AU56: 1913 | AW56: 23076
A57: h.2 TAME | B57: 1600 | E57: 1600 | AG57: 1500 | AH57: 2200 | AJ57: 2600 | AW57: 9500
A58: i. Tank Storage (bbl)
A59: i.1 Crude Oil | B59: 1400000 | C59: 736000 | D59: 300000 | E59: 1400000 | F59: 325862.7 | G59: 256733 | H59: 3460000 | I59: 2960000 | J59: 430000 | K59: 750000 | L59: 1077050 | M59: 1054000 | N59: 154000 | P59: 1058400 | R59: 531000 | S59: 637000 | T59: 343000 | U59: 216300 | V59: 24500 | W59: 2807000 | X59: 781000 | Y59: 60000 | Z59: 2470842 | AA59: 3800000 | AB59: 2000000 | AF59: 825000 | AG59: 2931000 | AH59: 1147000 | AI59: 1319000 | AJ59: 1250000 | AK59: 1046000 | AL59: 940000 | AM59: 255000 | AN59: 4661295 | AO59: 2984.924528 | AP59: 5776700 | AQ59: 3634100 | AR59: 7188500 | AS59: 4793800 | AU59: 3325600 | AV59: 4193200 | AW59: 72321867.62
A60: i.2 Gasoline | B60: 600000 | C60: 346000 | D60: 91000 | E60: 600000 | F60: 122208.41 | G60: 41513 | H60: 1120000 | I60: 833000 | K60: 550000 | L60: 640800 | M60: 312000 | N60: 69955 | P60: 408741 | R60: 337000 | S60: 413160 | T60: 265500 | U60: 63800 | V60: 7800 | W60: 470400 | X60: 369000 | Z60: 1623996 | AA60: 930000 | AB60: 1100000 | AF60: 793000 | AG60: 1115000 | AH60: 466000 | AI60: 762000 | AJ60: 788000 | AK60: 707000 | AL60: 372000 | AM60: 28000 | AN60: 1054000 | AO60: 1390.584906 | AP60: 1236000 | AQ60: 2171200 | AR60: 3136000 | AS60: 2874700 | AT60: 1279.08805 | AU60: 1595400 | AV60: 2077700 | AW60: 30494543.08
A61: i.3 Diesel | B61: 753000 | C61: 453000 | D61: 153000 | E61: 753000 | F61: 202675.1 | G61: 101159 | H61: 836700 | I61: 450000 | J61: 120000 | K61: 680000 | L61: 652250 | M61: 280500 | N61: 64175 | P61: 307073 | R61: 1016400 | S61: 79460 | T61: 841200 | U61: 58400 | V61: 7000 | W61: 956500 | X61: 425000 | Y61: 10000 | Z61: 1365524 | AA61: 570000 | AB61: 450000 | AF61: 231000 | AG61: 585000 | AH61: 599000 | AI61: 515000 | AJ61: 342000 | AK61: 488000 | AL61: 567000 | AM61: 104000 | AN61: 867000 | AO61: 1155.09434 | AP61: 2370700 | AQ61: 1483000 | AR61: 3397700 | AS61: 1891000 | AT61: 637.4528302 | AU61: 1116900 | AV61: 1503200 | AW61: 27648308.65
A62: j. Conversion Rate
A63: j.1 Conversion Rate | B63: 0.98 | C63: 1.32 | D63: 0 | E63: 1.2444 | F63: 0.2669 | G63: 0.2133 | H63: 1.8111 | I63: 1.2331 | J63: 0 | K63: 0.2626 | L63: 0.7013 | M63: 0 | N63: 0 | O63: 0 | P63: 0.8594 | Q63: 0 | R63: 0 | S63: 0.3065 | T63: 0 | U63: 0 | V63: 0 | W63: 0.2422 | X63: 0.563 | Y63: 0.1273 | Z63: 0.6874 | AA63: 0.8712 | AB63: 0.4517 | AC63: 0.4656 | AD63: 0 | AE63: 0 | AF63: 0.7848367347 | AG63: 0.9574242424 | AH63: 1.230031746 | AI63: 1.369618182 | AJ63: 1.409789474 | AK63: 1.051528358 | AL63: 0.06854566444 | AM63: 0 | AN63: 0.329669792 | AO63: 1.077593812 | AP63: 0.5874349427 | AQ63: 1.043656182 | AR63: 0.8440902755 | AS63: 0.7720614465 | AT63: 0.4117735087 | AU63: 0.5112028021 | AV63: 0.6333370433 | AW63: 25.68959421
A64: k. Desulfurization Rate (%)
A65: k.1 Desulfurization Rate (%) | B65: 0.273015873 | C65: 0.3341800948 | D65: 0 | E65: 0.3555555556 | F65: 0.2053266332 | G65: 0.1641025641 | H65: 0.9277623211 | I65: 0.6149973503 | J65: 0 | K65: 0.136 | L65: 0.3409090909 | M65: 0 | N65: 0 | O65: 0 | P65: 0.6611111111 | Q65: 0 | R65: 0 | S65: 0 | T65: 0 | U65: 0 | V65: 0 | W65: 0.02523364486 | X65: 0.4330941201 | Y65: 0 | Z65: 0.56 | AA65: 0.45 | AB65: 0.092 | AC65: 0 | AD65: 0 | AE65: 0 | AF65: 0.4673469388 | AG65: 0.5 | AH65: 0.7015873016 | AI65: 0.6781818182 | AJ65: 0.7463157895 | AK65: 0.5653731343 | AL65: 0 | AM65: 0 | AN65: 0 | AO65: 0.4040292992 | AP65: 0.2999707137 | AQ65: 0.2684808405 | AR65: 0.1807443457 | AS65: 0.3248149811 | AT65: 0 | AU65: 0.1719644277 | AV65: 0.1333322733 | AW65: 11.01543022
B68: Yellow cells have comments or notes. Please check it in the "notes" page.
B70: Some values are hidden because the pivot table does not calculate the average values automatically
B72: Conversion Rate % (FCC equiv) = (Cap. FCC x 1 + Cap. HYD x 1,3 + Cap. VISB x 0,33 + Cap. Coking x 1,7.)*100/Distillation Capacity
B73: Desulfurization Rate (%) = S (HDS Capacity) x 100 / Distillation Capacity

Sheet notes
A1: Country | B1: Refinery | C1: Process | D1: Comment
A2: Uruguay | B2: La Teja | C2: Crude Oil Storage | D2: Buoy Terminal Tanks are included together with Refinery Site Crude Tanks (these being 13% of whole crude capacity). Crude pipeline & slop tanks are not included.
C3: Gasoline storage | D3: Naphta and all gasoline grades are included, Heavy Naphta being 28 % of the Refinery capacities shown here.
C4: Diesel storage | D4: No other distillate (Jet Fuel, Kerosene, Solvents) are included here, just Gas Oil & Diesel Oil capacities at Refinery are shown.
A5: Jamaica | B5: Kingston | C5: Atmospheric Distillation Capacity | D5: the Maximum Capacity of the exisiting Atmospheric crude unit is approx. 36,000 bpsd processing 30 API crude, or 32,000 bpd processing 26 API crude
A6: Bolivia | B6: G. Villaroel (Cochabamba) | C6: Lubes & Waxes | D6: Wax 75 BPD de Slack Wax
A7: Argentina | B7: La Plata | C7: Lubes & Waxes | D7: Capacity + 50tons of waxes
A8: México | B8: All | C8: Storage | D8: There is no data available on Oil & Products Storage of PEMEX Refineries

Sheet Investment (hidden)
A1: Country | B1: Refinery | C1: Owner/operator | D1: Type of Process | E1: Process | F1: Estimated total investment (US$mn) | G1: Capacity Upgrade (bbl/d) | H1: Estimated Final Capacity (bbl/d) | I1: Estimated Start-Up | J1: Comments
A2: Argentina | B2: La Plata | C2: YPF | D2: Conversion | E2: Coking -- Delayed | F2: 450 | H2: 46020 | I2: 2014
A3: Argentina | B3: La Plata | C3: YPF | D3: Hydrotreating | E3: Distillate Hydrotreating | F3: 325 | H3: 46300 | I3: 2012
A4: Argentina | B4: La Plata | C4: YPF | D4: Tank Storage (bbl) | E4: Crude Oil | F4: 20 | G4: 471000 | H4: 1871000 | I4: 2012
A5: Argentina | B5: Luján de Cuyo | C5: YPF | D5: Hydrotreating | E5: Gasoline/Naphtha Hydrotreating | F5: 155 | G5: 9060 | H5: 23940 | I5: 2012
A6: Argentina | B6: Luján de Cuyo | C6: YPF | D6: Hydrotreating | E6: Gas Oil Desulfurization | F6: 120 | G6: 16600 | H6: 16600 | I6: 2012
A7: Argentina | B7: Luján de Cuyo | C7: YPF | D7: Tank Storage (bbl) | E7: Crude Oil | F7: 18 | G7: 188670 | H7: 924670 | I7: 2012
A8: Chile | B8: ConCon (Aconcagua) | C8: ENAP | D8: Upgrading | E8: Alkylation (Product basis) | F8: 230 | G8: 6700 | H8: 7800 | I8: 2012
A9: Costa Rica | B9: Moín (Limón) | C9: RECOPE | D9: Crude Distillation | E9: Atmospheric Crude Distillation | F9: 125-175 | G9: 15000 | H9: 40000 | I9: 2015
A10: Costa Rica | B10: Moín (Limón) | C10: RECOPE | D10: Crude Distillation | E10: Vacuum Distillation | F10: 120-150 | G10: 38800 | H10: 40000 | I10: 2015
A11: Costa Rica | B11: Moín (Limón) | C11: RECOPE | D11: Conversion | E11: Hydrocracking (Mild Conversion) | F11: 125-150 | G11: 16000 | H11: 16000
A12: Costa Rica | B12: Moín (Limón) | C12: RECOPE | D12: Conversion | E12: Coking -- Delayed | F12: 125-150 | G12: 12000 | H12: 12000
A13: Costa Rica | B13: Moín (Limón) | C13: RECOPE | D13: Upgrading | E13: C5/C6 Isomerization | F13: 25 - 50 | G13: 1300 | H13: 1300 | I13: 2015
A14: Costa Rica | B14: Moín (Limón) | C14: RECOPE | D14: Upgrading | E14: Catalytic Reforming -- Medium Pressure | F14: 75-125 | G14: 8700 | H14: 10000 | I14: 2105
A15: Costa Rica | B15: Moín (Limón) | C15: RECOPE | D15: Hydrotreating | E15: Gasoline/Naphtha Hydrotreating | F15: 50-100 | G15: 10800 | H15: 12000 | I15: 2015
A16: Costa Rica | B16: Moín (Limón) | C16: RECOPE | D16: Hydrotreating | E16: Kerosene Hydrotreating | F16: 15 - 50 | G16: 1300 | H16: 3500 | I16: 2015
A17: Costa Rica | B17: Moín (Limón) | C17: RECOPE | D17: Hydrotreating | E17: Distillate Hydrotreating | F17: 75-125 | G17: 25000 | H17: 25000 | I17: 2015
A18: Costa Rica | B18: Moín (Limón) | C18: RECOPE | D18: Other | E18: Asphalt & Bitumen Manufacture | F18: 15-20 | G18: 800 | H18: 2000 | I18: 2015 | J18: Revamping
A19: Costa Rica | B19: Moín (Limón) | C19: RECOPE | D19: Other | E19: Sulfur Recovery Unit (tonnes/day) | F19: 15-30 | G19: 56 | H19: 56.26857143 | I19: 2015
A20: Ecuador | B20: Esmeraldas | C20: EP PETROECUADOR | D20: Conversion | E20: Catalytic Cracking | F20: 350 | G20: 2000 | H20: 20000 | I20: 2012 | J20: Revamping
A21: Perú | B21: Refinería Talara | C21: Petroperú | D21: Crude Distillation | E21: Atmospheric Crude Distillation | F21: nda | G21: 33000 | H21: 95000 | I21: Julio 2016
A22: Perú | B22: Refinería Talara | C22: PetroPerú | D22: Crude Distillation | E22: Vacuum Distillation | F22: nda | G22: 24800 | H22: 53000 | I22: Julio 2016
A23: Perú | B23: Refinería Talara | C23: PetroPerú | D23: Conversion | E23: Catalytic Cracking | F23: nda | G23: 6000 | H23: 25000 | I23: Julio 2016
A24: Perú | B24: Refinería Talara | C24: PetroPerú | D24: Upgrading | E24: Catalytic Reforming -- Medium Pressure | F24: nda | G24: 9500 | H24: 9500 | I24: Julio 2016
A25: Perú | B25: Refinería Talara | C25: PetroPerú | D25: Hydrotreating | E25: Distillate Hydrotreating | F25: nda | G25: 41000 | H25: 41000 | I25: Julio 2016
A26: Perú | B26: Refinería Talara | C26: PetroPerú | D26: Hydrogen (k scf/d) | E26: Hydrogen Generation kscf/d | F26: nda | G26: 30000 | H26: 30000 | I26: Julio 2016
A27: Perú | B27: Refinería Talara | C27: PetroPerú | D27: Other | E27: Sulfur Recovery Unit (tonnes/day) | F27: nda | G27: 560 | H27: 560 | I27: Julio 2016
A28: Perú | B28: Refinería Talara | C28: PetroPerú | D28: Tank Storage (bbl) | E28: Crude Oil | F28: 17.9 | G28: 380000 | H28: 1017000 | I28: Enero 2014
A29: Perú | B29: Refinería Talara | C29: PetroPerú | D29: Tank Storage (bbl) | E29: LPG | F29: 26.8 | G29: 60000 | H29: nda | I29: Setiembre 2013
A30: Perú | B30: Refinería Talara | C30: PetroPerú | D30: Tank Storage (bbl) | E30: Aviation (jet a1) | F30: 7.1 | G30: 240000 | H30: nda | I30: may/14
A31: Perú | B31: Refinería Talara | C31: PetroPerú | D31: Tank Storage (bbl) | E31: Diesel/ BioDiesel / Gasoline / Aviation | F31: 41.5 | G31: 772000 | H31: =492000+G31 -> 1264000 | I31: nov/13 - may/14 - feb/15
A32: Perú | B32: Conchan (Lima) | C32: PetroPerú | D32: Crude Distillation | E32: Atmospheric Crude Distillation | F32: 4.5 | G32: 2000 | H32: 15500 | I32: Abril 2013
A33: Perú | B33: Conchan (Lima) | C33: PetroPerú | D33: Tank Storage (bbl) | E33: Crude Oil | F33: 8.6 | G33: 320000 | H33: 663000 | I33: Julio 2014
A34: Perú | B34: Conchan (Lima) | C34: PetroPerú | D34: Tank Storage (bbl) | E34: Gasoline | F34: 3 | G34: 120000 | H34: 385500 | I34: Diciembre 2013
A35: Perú | B35: Conchan (Lima) | C35: PetroPerú | D35: Tank Storage (bbl) | E35: Asphalt | F35: 1.6 | G35: 60000 | H35: nda | I35: Setiembre 2014
A36: Perú | B36: Conchan (Lima) | C36: PetroPerú | D36: Tank Storage (bbl) | E36: Biodiesel | F36: 3.2 | G36: 120000 | H36: nda | I36: Diciembre 2013
A37: Perú | B37: Conchan (Lima) | C37: PetroPerú | D37: Tank Storage (bbl) | E37: Bioethanol | F37: 3.1 | G37: 80500 | H37: nda | I37: Agosto 2013
A38: Perú | B38: Conchan (Lima) | C38: PetroPerú | D38: Tank Storage (bbl) | E38: Diesel | F38: 3.9 | G38: 240000 | H38: 1081200 | I38: Abril 2012
A39: Perú | B39: Iquitos | C39: PetroPerú | D39: Tank Storage (bbl) | E39: Crude Oil | F39: 1 | G39: 20000 | H39: 236300 | I39: noviembre 2013
A40: Perú | B40: Iquitos | C40: PetroPerú | D40: Tank Storage (bbl) | E40: Diesel / gasoline | F40: 4.3 | G40: 80000 | H40: =138400+63800 -> 202200 | I40: 2012
A41: Perú | B41: La Pampilla (Callao) | C41: PetroPerú | D41: Upgrading | E41: C5/C6 Isomerization | F41: 18.2 | G41: 2500 | H41: 2500 | I41: jan/13
A42: Perú | B42: La Pampilla (Callao) | C42: PetroPerú | D42: Upgrading | E42: Catalytic Reforming -- High Pressure | F42: 43.1 | G42: =+H42-1700 -> 5900 | H42: 7600 | I42: jan/13
A43: Perú | B43: La Pampilla (Callao) | C43: PetroPerú | D43: Hydrotreating | E43: Gasoline/Naphtha Hydrotreating | F43: 55.9 | G43: =+H43-2700 -> 8800 | H43: 11500 | I43: jan/13
A44: Perú | B44: La Pampilla (Callao) | C44: PetroPerú | D44: Fractionation | E44: Cat Cracked Gasoline Splitter | F44: 29.2 | G44: 5760 | H44: 5760 | I44: jan/13
A45: Uruguay | B45: La Teja | C45: ANCAP | D45: Hydrotreating | E45: Gasoline/Naphtha Hydrotreating | F45: 60 | G45: 5000 | H45: 23000 | I45: Marzo de 2013
A46: Uruguay | B46: La Teja | C46: ANCAP | D46: Hydrotreating | E46: Distillate Hydrotreating | F46: 120 | G46: 18500 | H46: 22500 | I46: Marzo de 2013
A47: Uruguay | B47: La Teja | C47: ANCAP | D47: Other | E47: Sulfur Recovery Unit (tonnes/day) | F47: 40 | G47: 40 | H47: 40 | I47: Marzo de 2013
A48: Surinam | B48: Paramaribo | C48: Staatsolie | D48: Crude Distillation | E48: Atmospheric Crude Distillation | F48: nda | G48: 8000 | H48: 15000 | I48: jul/2014
A49: Surinam | B49: Paramaribo | C49: Staatsolie | D49: Conversion | E49: Hydrocracking (Mild Conversion) | F49: nda | G49: 10040 | H49: 10040 | I49: jul/2014
A50: Surinam | B50: Paramaribo | C50: Staatsolie | D50: Other | E50: Sulfur Recovery Unit (tonnes/day) | F50: nda | G50: 34 | H50: 34 | I50: jul/2014
A51: Surinam | B51: Paramaribo | C51: Staatsolie | D51: Upgrading | E51: Catalytic Reforming -- Medium Pressure | F51: nda | G51: 3100 | H51: 3100 | I51: jul/2014
A52: Surinam | B52: Paramaribo | C52: Staatsolie | D52: Hydrogen (k scf/d) | E52: Hydrogen Generation | F52: nda | G52: 20300 | H52: 20300 | I52: jul/2014
A53: Surinam | B53: Paramaribo | C53: Staatsolie | D53: Tank Storage (bbl) | E53: Crude Oil | F53: nda | G53: 165000 | H53: 225000 | I53: dic/2014
A54: Surinam | B54: Paramaribo | C54: Staatsolie | D54: Tank Storage (bbl) | E54: Gasoline | F54: nda | G54: 37000 | H54: 37000 | I54: jul/2014
A55: Surinam | B55: Paramaribo | C55: Staatsolie | D55: Tank Storage (bbl) | E55: Diesel | F55: nda | G55: 72000 | H55: 82000 | I55: jul/2014
A56: Colombia | B56: Cartagena | C56: Ecopetrol | D56: Crude Distillation | E56: Atmospheric Crude Distillation | F56: nda | G56: 85000 | H56: 165000 | I56: 2014
A57: Colombia | B57: Cartagena | C57: Ecopetrol | D57: Crude Distillation | E57: Vacuum Distillation | F57: nda | G57: 92000 | H57: 92000 | I57: 2014
A58: Colombia | B58: Cartagena | C58: Ecopetrol | D58: Conversion | E58: Catalytic Cracking | F58: nda | G58: 6000 | H58: 35000 | I58: 2014
A59: Colombia | B59: Cartagena | C59: Ecopetrol | D59: Conversion | E59: Hydrocracking (Mild Conversion) | F59: nda | G59: 35000 | H59: 35000 | I59: 2014
A60: Colombia | B60: Cartagena | C60: Ecopetrol | D60: Conversion | E60: Coking -- Delayed | F60: nda | G60: 40000 | H60: 40000 | I60: 2014
A61: Colombia | B61: Cartagena | C61: Ecopetrol | D61: Upgrading | E61: Alkylation (Product basis) | F61: nda | G61: 5000 | H61: 5000 | I61: 2014
A62: Colombia | B62: Cartagena | C62: Ecopetrol | D62: Hydrotreating | E62: Gasoline/Naphtha Hydrotreating | F62: nda | G62: 40000 | H62: 40000 | I62: 2014
A63: Colombia | B63: Cartagena | C63: Ecopetrol | D63: Hydrotreating | E63: Distillate Hydrotreating | F63: nda | G63: 70000 | H63: 70000 | I63: 2014
A64: Colombia | B64: Cartagena | C64: Ecopetrol | D64: Hydrogen (k scf/d) | E64: Hydrogen Generation | F64: nda | G64: 90000 | H64: 90000 | I64: 2014
A65: Colombia | B65: Cartagena | C65: Ecopetrol | D65: Other | E65: C4 Isomerization | F65: nda | G65: 1000 | H65: 1000 | I65: 2014
A66: Colombia | B66: Cartagena | C66: Ecopetrol | D66: Other | E66: Sulfur Recovery Unit (tonnes/day) | F66: nda | G66: 240 | H66: 270 | I66: 2014

Sheet Refineries DB (hidden)
A1: Año Public. | B1: últ actualiz. | C1: Tipo de info | D1: Refinery (country) | E1: Country | F1: Company | G1: Type of process | H1: Process | I1: Capacity (bbl/d) | J1: New Projects (bbl/d) | K1: Investment Estimate (M'US$) | L1: Start-up Estimate | M1: Notes
A2: 2012 | B2: 2011-08-01 | C2: Verificada | D2: ARG - La Plata | E2: Argentina | F2: YPF | G2: a. Crude Distillation | H2: a.1 Atmospheric Crude Distillation | I2: 189000
A3: 2012 | B3: 2011-08-01 | C3: Verificada | D3: ARG - La Plata | E3: Argentina | F3: YPF | G3: a. Crude Distillation | H3: a.2 Vacuum Distillation | I3: 64500
A4: 2012 | B4: 2011-08-01 | C4: Verificada | D4: ARG - La Plata | E4: Argentina | F4: YPF | G4: b. Conversion | H4: b.1 Catalytic Cracking | I4: 59800
A5: 2012 | B5: 2011-08-01 | C5: Verificada | D5: ARG - La Plata | E5: Argentina | F5: YPF | G5: b. Conversion | H5: b.2 Resid Cat Cracking
A6: 2012 | B6: 2011-08-01 | C6: Verificada | D6: ARG - La Plata | E6: Argentina | F6: YPF | G6: b. Conversion | H6: b.3 Hydrocracking (Mild Conversion)
A7: 2012 | B7: 2011-08-01 | C7: Verificada | D7: ARG - La Plata | E7: Argentina | F7: YPF | G7: b. Conversion | H7: b.4 Coking -- Delayed | I7: 34700 | J7: 11320 | K7: 450 | L7: 2014
A8: 2012 | B8: 2011-08-01 | C8: Verificada | D8: ARG - La Plata | E8: Argentina | F8: YPF | G8: b. Conversion | H8: b.5 Coking -- Fluid
A9: 2012 | B9: 2011-08-01 | C9: Verificada | D9: ARG - La Plata | E9: Argentina | F9: YPF | G9: b. Conversion | H9: b.6 Visbreaking
A10: 2012 | B10: 2011-08-01 | C10: Verificada | D10: ARG - La Plata | E10: Argentina | F10: YPF | G10: c. Upgrading | H10: c.1 H-Oil
A11: 2012 | B11: 2011-08-01 | C11: Verificada | D11: ARG - La Plata | E11: Argentina | F11: YPF | G11: c. Upgrading | H11: c.2 HDH
A12: 2012 | B12: 2011-08-01 | C12: Verificada | D12: ARG - La Plata | E12: Argentina | F12: YPF | G12: c. Upgrading | H12: c.3 Alkylation (Product basis)
A13: 2012 | B13: 2011-08-01 | C13: Verificada | D13: ARG - La Plata | E13: Argentina | F13: YPF | G13: c. Upgrading | H13: c.4 Polymerization
A14: 2012 | B14: 2011-08-01 | C14: Verificada | D14: ARG - La Plata | E14: Argentina | F14: YPF | G14: c. Upgrading | H14: c.5 C5/C6 Isomerization | I14: 6800
A15: 2012 | B15: 2011-08-01 | C15: Verificada | D15: ARG - La Plata | E15: Argentina | F15: YPF | G15: c. Upgrading | H15: c.6 Catalytic Reforming -- Low Pressure
A16: 2012 | B16: 2011-08-01 | C16: Verificada | D16: ARG - La Plata | E16: Argentina | F16: YPF | G16: c. Upgrading | H16: c.7 Catalytic Reforming -- Medium Pressure | I16: 10200
A17: 2012 | B17: 2011-08-01 | C17: Verificada | D17: ARG - La Plata | E17: Argentina | F17: YPF | G17: c. Upgrading | H17: c.8 Catalytic Reforming -- High Pressure
A18: 2012 | B18: 2011-08-01 | C18: Verificada | D18: ARG - La Plata | E18: Argentina | F18: YPF | G18: d. Hydrotreating | H18: d.1 Gasoline/Naphtha Hydrotreating | I18: 36700
A19: 2012 | B19: 2011-08-01 | C19: Verificada | D19: ARG - La Plata | E19: Argentina | F19: YPF | G19: d. Hydrotreating | H19: d.2 Kerosene Hydrotreating
A20: 2012 | B20: 2011-08-01 | C20: Verificada | D20: ARG - La Plata | E20: Argentina | F20: YPF | G20: d. Hydrotreating | H20: d.3 Distillate Hydrotreating | I20: 14900 | J20: 31400 | K20: 325 | L20: 2012
A21: 2012 | B21: 2011-08-01 | C21: Verificada | D21: ARG - La Plata | E21: Argentina | F21: YPF | G21: d. Hydrotreating | H21: d.4 Residual Desulfurization
A22: 2012 | B22: 2011-08-01 | C22: Verificada | D22: ARG - La Plata | E22: Argentina | F22: YPF | G22: d. Hydrotreating | H22: d.5 Gas Oil Desulfurization
A23: 2012 | B23: 2011-08-01 | C23: Verificada | D23: ARG - La Plata | E23: Argentina | F23: YPF | G23: e. Hydrogen (k scf/d) | H23: e.1 Hydrogen Generation
A24: 2012 | B24: 2011-08-01 | C24: Verificada | D24: ARG - La Plata | E24: Argentina | F24: YPF | G24: e. Hydrogen (k scf/d) | H24: e.2 Purification
A25: 2012 | B25: 2011-08-01 | C25: Verificada | D25: ARG - La Plata | E25: Argentina | F25: YPF | G25: f. Other | H25: f.1 Aromatic Solvent Extraction | I25: 11700
A26: 2012 | B26: 2011-08-01 | C26: Verificada | D26: ARG - La Plata | E26: Argentina | F26: YPF | G26: f. Other | H26: f.2 Other Aromatic Process
A27: 2012 | B27: 2011-08-01 | C27: Verificada | D27: ARG - La Plata | E27: Argentina | F27: YPF | G27: f. Other | H27: f.3 C4 Isomerization
A28: 2012 | B28: 2011-08-01 | C28: Verificada | D28: ARG - La Plata | E28: Argentina | F28: YPF | G28: f. Other | H28: f.4 Solvent Desaphalting | I28: 9600
A29: 2012 | B29: 2011-08-01 | C29: Verificada | D29: ARG - La Plata | E29: Argentina | F29: YPF | G29: f. Other | H29: f.5 Lubes & Waxes | I29: 4900 | M29: Capacity: +50 tons de waxes
A30: 2012 | B30: 2011-08-01 | C30: Verificada | D30: ARG - La Plata | E30: Argentina | F30: YPF | G30: f. Other | H30: f.6 Asphalt & Bitumen Manufacture | I30: 7500
A31: 2012 | B31: 2011-08-01 | C31: Verificada | D31: ARG - La Plata | E31: Argentina | F31: YPF | G31: f. Other | H31: f.7 Sulfur Recovery Unit (tonnes/day) | I31: 54
A32: 2012 | B32: 2011-08-01 | C32: Verificada | D32: ARG - La Plata | E32: Argentina | F32: YPF | G32: g. Fractionation | H32: g.1 Propane/Propylene Splitter
A33: 2012 | B33: 2011-08-01 | C33: Verificada | D33: ARG - La Plata | E33: Argentina | F33: YPF | G33: g. Fractionation | H33: g.2 Deisobutanizer
A34: 2012 | B34: 2011-08-01 | C34: Verificada | D34: ARG - La Plata | E34: Argentina | F34: YPF | G34: g. Fractionation | H34: g.3 Deisopentanizer
A35: 2012 | B35: 2011-08-01 | C35: Verificada | D35: ARG - La Plata | E35: Argentina | F35: YPF | G35: g. Fractionation | H35: g.4 Deisohexanizer
A36: 2012 | B36: 2011-08-01 | C36: Verificada | D36: ARG - La Plata | E36: Argentina | F36: YPF | G36: g. Fractionation | H36: g.5 Alkylate Splitter
A37: 2012 | B37: 2011-08-01 | C37: Verificada | D37: ARG - La Plata | E37: Argentina | F37: YPF | G37: g. Fractionation | H37: g.6 Reformate Splitter
A38: 2012 | B38: 2011-08-01 | C38: Verificada | D38: ARG - La Plata | E38: Argentina | F38: YPF | G38: g. Fractionation | H38: g.7 Cat Cracked Gasoline Splitter | I38: 30000
A39: 2012 | B39: 2011-08-01 | C39: Verificada | D39: ARG - La Plata | E39: Argentina | F39: YPF | G39: h. Oxygenates | H39: h.1 MTBE | I39: 1400
A40: 2012 | B40: 2011-08-01 | C40: Verificada | D40: ARG - La Plata | E40: Argentina | F40: YPF | G40: h. Oxygenates | H40: h.2 TAME | I40: 1600
A41: 2012 | B41: 2011-08-01 | C41: Verificada | D41: ARG - La Plata | E41: Argentina | F41: YPF | G41: i. Tank Storage (bbl) | H41: i.1 Crude Oil | I41: 1400000 | J41: 471000 | K41: 20 | L41: 2012
A42: 2012 | B42: 2011-08-01 | C42: Verificada | D42: ARG - La Plata | E42: Argentina | F42: YPF | G42: i. Tank Storage (bbl) | H42: i.2 Gasoline | I42: 600000
A43: 2012 | B43: 2011-08-01 | C43: Verificada | D43: ARG - La Plata | E43: Argentina | F43: YPF | G43: i. Tank Storage (bbl) | H43: i.3 Diesel | I43: 753000
A44: 2012 | B44: 2011-08-01 | C44: Verificada | D44: ARG - La Plata | E44: Argentina | F44: YPF | G44: j. Conversion Rate | H44: j.1 Conversion Rate | I44: 0.98
A45: 2012 | B45: 2011-08-01 | C45: Verificada | D45: ARG - La Plata | E45: Argentina | F45: YPF | G45: k. Desulfurization Rate (%) | H45: k.1 Desulfurization Rate (%) | I45: =SUM(I18:I22)/I2 -> 0.273015873
A46: 2012 | B46: 2011-08-01 | C46: Verificada | D46: ARG - Luján de Cuyo | E46: Argentina | F46: YPF | G46: a. Crude Distillation | H46: a.1 Atmospheric Crude Distillation | I46: 105500
A47: 2012 | B47: 2011-08-01 | C47: Verificada | D47: ARG - Luján de Cuyo | E47: Argentina | F47: YPF | G47: a. Crude Distillation | H47: a.2 Vacuum Distillation | I47: 66000
A48: 2012 | B48: 2011-08-01 | C48: Verificada | D48: ARG - Luján de Cuyo | E48: Argentina | F48: YPF | G48: b. Conversion | H48: b.1 Catalytic Cracking | I48: 23900
A49: 2012 | B49: 2011-08-01 | C49: Verificada | D49: ARG - Luján de Cuyo | E49: Argentina | F49: YPF | G49: b. Conversion | H49: b.2 Resid Cat Cracking
A50: 2012 | B50: 2011-08-01 | C50: Verificada | D50: ARG - Luján de Cuyo | E50: Argentina | F50: YPF | G50: b. Conversion | H50: b.3 Hydrocracking (Mild Conversion) | I50: 18000
A51: 2012 | B51: 2011-08-01 | C51: Verificada | D51: ARG - Luján de Cuyo | E51: Argentina | F51: YPF | G51: b. Conversion | H51: b.4 Coking -- Delayed | I51: 40627
A52: 2012 | B52: 2011-08-01 | C52: Verificada | D52: ARG - Luján de Cuyo | E52: Argentina | F52: YPF | G52: b. Conversion | H52: b.5 Coking -- Fluid
A53: 2012 | B53: 2011-08-01 | C53: Verificada | D53: ARG - Luján de Cuyo | E53: Argentina | F53: YPF | G53: b. Conversion | H53: b.6 Visbreaking
A54: 2012 | B54: 2011-08-01 | C54: Verificada | D54: ARG - Luján de Cuyo | E54: Argentina | F54: YPF | G54: c. Upgrading | H54: c.1 H-Oil
A55: 2012 | B55: 2011-08-01 | C55: Verificada | D55: ARG - Luján de Cuyo | E55: Argentina | F55: YPF | G55: c. Upgrading | H55: c.2 HDH
A56: 2012 | B56: 2011-08-01 | C56: Verificada | D56: ARG - Luján de Cuyo | E56: Argentina | F56: YPF | G56: c. Upgrading | H56: c.3 Alkylation (Product basis) | I56: 2800
A57: 2012 | B57: 2011-08-01 | C57: Verificada | D57: ARG - Luján de Cuyo | E57: Argentina | F57: YPF | G57: c. Upgrading | H57: c.4 Polymerization
A58: 2012 | B58: 2011-08-01 | C58: Verificada | D58: ARG - Luján de Cuyo | E58: Argentina | F58: YPF | G58: c. Upgrading | H58: c.5 C5/C6 Isomerization | I58: 3472
A59: 2012 | B59: 2011-08-01 | C59: Verificada | D59: ARG - Luján de Cuyo | E59: Argentina | F59: YPF | G59: c. Upgrading | H59: c.6 Catalytic Reforming -- Low Pressure
A60: 2012 | B60: 2011-08-01 | C60: Verificada | D60: ARG - Luján de Cuyo | E60: Argentina | F60: YPF | G60: c. Upgrading | H60: c.7 Catalytic Reforming -- Medium Pressure | I60: 10377
A61: 2012 | B61: 2011-08-01 | C61: Verificada | D61: ARG - Luján de Cuyo | E61: Argentina | F61: YPF | G61: c. Upgrading | H61: c.8 Catalytic Reforming -- High Pressure
A62: 2012 | B62: 2011-08-01 | C62: Verificada | D62: ARG - Luján de Cuyo | E62: Argentina | F62: YPF | G62: d. Hydrotreating | H62: d.1 Gasoline/Naphtha Hydrotreating | I62: 14880 | J62: 9060 | K62: 155 | L62: 2012
A63: 2012 | B63: 2011-08-01 | C63: Verificada | D63: ARG - Luján de Cuyo | E63: Argentina | F63: YPF | G63: d. Hydrotreating | H63: d.2 Kerosene Hydrotreating
A64: 2012 | B64: 2011-08-01 | C64: Verificada | D64: ARG - Luján de Cuyo | E64: Argentina | F64: YPF | G64: d. Hydrotreating | H64: d.3 Distillate Hydrotreating | I64: 20376
A65: 2012 | B65: 2011-08-01 | C65: Verificada | D65: ARG - Luján de Cuyo | E65: Argentina | F65: YPF | G65: d. Hydrotreating | H65: d.4 Residual Desulfurization
A66: 2012 | B66: 2011-08-01 | C66: Verificada | D66: ARG - Luján de Cuyo | E66: Argentina | F66: YPF | G66: d. Hydrotreating | H66: d.5 Gas Oil Desulfurization | J66: 16600 | K66: 120 | L66: 2012
A67: 2012 | B67: 2011-08-01 | C67: Verificada | D67: ARG - Luján de Cuyo | E67: Argentina | F67: YPF | G67: e. Hydrogen (k scf/d) | H67: e.1 Hydrogen Generation | I67: 21190 | J67: 5085.312008 | L67: 2012
A68: 2012 | B68: 2011-08-01 | C68: Verificada | D68: ARG - Luján de Cuyo | E68: Argentina | F68: YPF | G68: e. Hydrogen (k scf/d) | H68: e.2 Purification
A69: 2012 | B69: 2011-08-01 | C69: Verificada | D69: ARG - Luján de Cuyo | E69: Argentina | F69: YPF | G69: f. Other | H69: f.1 Aromatic Solvent Extraction
A70: 2012 | B70: 2011-08-01 | C70: Verificada | D70: ARG - Luján de Cuyo | E70: Argentina | F70: YPF | G70: f. Other | H70: f.2 Other Aromatic Process
A71: 2012 | B71: 2011-08-01 | C71: Verificada | D71: ARG - Luján de Cuyo | E71: Argentina | F71: YPF | G71: f. Other | H71: f.3 C4 Isomerization
A72: 2012 | B72: 2011-08-01 | C72: Verificada | D72: ARG - Luján de Cuyo | E72: Argentina | F72: YPF | G72: f. Other | H72: f.4 Solvent Desaphalting
A73: 2012 | B73: 2011-08-01 | C73: Verificada | D73: ARG - Luján de Cuyo | E73: Argentina | F73: YPF | G73: f. Other | H73: f.5 Lubes & Waxes
A74: 2012 | B74: 2011-08-01 | C74: Verificada | D74: ARG - Luján de Cuyo | E74: Argentina | F74: YPF | G74: f. Other | H74: f.6 Asphalt & Bitumen Manufacture
A75: 2012 | B75: 2011-08-01 | C75: Verificada | D75: ARG - Luján de Cuyo | E75: Argentina | F75: YPF | G75: f. Other | H75: f.7 Sulfur Recovery Unit (tonnes/day) | I75: 54
A76: 2012 | B76: 2011-08-01 | C76: Verificada | D76: ARG - Luján de Cuyo | E76: Argentina | F76: YPF | G76: g. Fractionation | H76: g.1 Propane/Propylene Splitter
A77: 2012 | B77: 2011-08-01 | C77: Verificada | D77: ARG - Luján de Cuyo | E77: Argentina | F77: YPF | G77: g. Fractionation | H77: g.2 Deisobutanizer | I77: 5740
A78: 2012 | B78: 2011-08-01 | C78: Verificada | D78: ARG - Luján de Cuyo | E78: Argentina | F78: YPF | G78: g. Fractionation | H78: g.3 Deisopentanizer
A79: 2012 | B79: 2011-08-01 | C79: Verificada | D79: ARG - Luján de Cuyo | E79: Argentina | F79: YPF | G79: g. Fractionation | H79: g.4 Deisohexanizer
A80: 2012 | B80: 2011-08-01 | C80: Verificada | D80: ARG - Luján de Cuyo | E80: Argentina | F80: YPF | G80: g. Fractionation | H80: g.5 Alkylate Splitter
A81: 2012 | B81: 2011-08-01 | C81: Verificada | D81: ARG - Luján de Cuyo | E81: Argentina | F81: YPF | G81: g. Fractionation | H81: g.6 Reformate Splitter
A82: 2012 | B82: 2011-08-01 | C82: Verificada | D82: ARG - Luján de Cuyo | E82: Argentina | F82: YPF | G82: g. Fractionation | H82: g.7 Cat Cracked Gasoline Splitter | I82: 26790
A83: 2012 | B83: 2011-08-01 | C83: Verificada | D83: ARG - Luján de Cuyo | E83: Argentina | F83: YPF | G83: h. Oxygenates | H83: h.1 MTBE | I83: 1321
A84: 2012 | B84: 2011-08-01 | C84: Verificada | D84: ARG - Luján de Cuyo | E84: Argentina | F84: YPF | G84: h. Oxygenates | H84: h.2 TAME
A85: 2012 | B85: 2011-08-01 | C85: Verificada | D85: ARG - Luján de Cuyo | E85: Argentina | F85: YPF | G85: i. Tank Storage (bbl) | H85: i.1 Crude Oil | I85: 736000 | J85: 188670 | K85: 18 | L85: 2012
A86: 2012 | B86: 2011-08-01 | C86: Verificada | D86: ARG - Luján de Cuyo | E86: Argentina | F86: YPF | G86: i. Tank Storage (bbl) | H86: i.2 Gasoline | I86: 346000
A87: 2012 | B87: 2011-08-01 | C87: Verificada | D87: ARG - Luján de Cuyo | E87: Argentina | F87: YPF | G87: i. Tank Storage (bbl) | H87: i.3 Diesel | I87: 453000
A88: 2012 | B88: 2011-08-01 | C88: Verificada | D88: ARG - Luján de Cuyo | E88: Argentina | F88: YPF | G88: j. Conversion Rate | H88: j.1 Conversion Rate | I88: 1.32
A89: 2012 | B89: 2011-08-01 | C89: Verificada | D89: ARG - Luján de Cuyo | E89: Argentina | F89: YPF | G89: k. Desulfurization Rate (%) | H89: k.1 Desulfurization Rate (%) | I89: =SUM(I62:I66)/I46 -> 0.3341800948
A90: 2012 | B90: 2011-08-01 | C90: Verificada | D90: ARG - Plaza Huincul | E90: Argentina | F90: YPF | G90: a. Crude Distillation | H90: a.1 Atmospheric Crude Distillation | I90: 25000
A91: 2012 | B91: 2011-08-01 | C91: Verificada | D91: ARG - Plaza Huincul | E91: Argentina | F91: YPF | G91: a. Crude Distillation | H91: a.2 Vacuum Distillation
A92: 2012 | B92: 2011-08-01 | C92: Verificada | D92: ARG - Plaza Huincul | E92: Argentina | F92: YPF | G92: b. Conversion | H92: b.1 Catalytic Cracking
A93: 2012 | B93: 2011-08-01 | C93: Verificada | D93: ARG - Plaza Huincul | E93: Argentina | F93: YPF | G93: b. Conversion | H93: b.2 Resid Cat Cracking
A94: 2012 | B94: 2011-08-01 | C94: Verificada | D94: ARG - Plaza Huincul | E94: Argentina | F94: YPF | G94: b. Conversion | H94: b.3 Hydrocracking (Mild Conversion)
A95: 2012 | B95: 2011-08-01 | C95: Verificada | D95: ARG - Plaza Huincul | E95: Argentina | F95: YPF | G95: b. Conversion | H95: b.4 Coking -- Delayed
A96: 2012 | B96: 2011-08-01 | C96: Verificada | D96: ARG - Plaza Huincul | E96: Argentina | F96: YPF | G96: b. Conversion | H96: b.5 Coking -- Fluid
A97: 2012 | B97: 2011-08-01 | C97: Verificada | D97: ARG - Plaza Huincul | E97: Argentina | F97: YPF | G97: b. Conversion | H97: b.6 Visbreaking
A98: 2012 | B98: 2011-08-01 | C98: Verificada | D98: ARG - Plaza Huincul | E98: Argentina | F98: YPF | G98: c. Upgrading | H98: c.1 H-Oil
A99: 2012 | B99: 2011-08-01 | C99: Verificada | D99: ARG - Plaza Huincul | E99: Argentina | F99: YPF | G99: c. Upgrading | H99: c.2 HDH
A100: 2012 | B100: 2011-08-01 | C100: Verificada | D100: ARG - Plaza Huincul | E100: Argentina | F100: YPF | G100: c. Upgrading | H100: c.3 Alkylation (Product basis)
A101: 2012 | B101: 2011-08-01 | C101: Verificada | D101: ARG - Plaza Huincul | E101: Argentina | F101: YPF | G101: c. Upgrading | H101: c.4 Polymerization
A102: 2012 | B102: 2011-08-01 | C102: Verificada | D102: ARG - Plaza Huincul | E102: Argentina | F102: YPF | G102: c. Upgrading | H102: c.5 C5/C6 Isomerization
A103: 2012 | B103: 2011-08-01 | C103: Verificada | D103: ARG - Plaza Huincul | E103: Argentina | F103: YPF | G103: c. Upgrading | H103: c.6 Catalytic Reforming -- Low Pressure
A104: 2012 | B104: 2011-08-01 | C104: Verificada | D104: ARG - Plaza Huincul | E104: Argentina | F104: YPF | G104: c. Upgrading | H104: c.7 Catalytic Reforming -- Medium Pressure | I104: 2600
A105: 2012 | B105: 2011-08-01 | C105: Verificada | D105: ARG - Plaza Huincul | E105: Argentina | F105: YPF | G105: c. Upgrading | H105: c.8 Catalytic Reforming -- High Pressure
A106: 2012 | B106: 2011-08-01 | C106: Verificada | D106: ARG - Plaza Huincul | E106: Argentina | F106: YPF | G106: d. Hydrotreating | H106: d.1 Gasoline/Naphtha Hydrotreating
A107: 2012 | B107: 2011-08-01 | C107: Verificada | D107: ARG - Plaza Huincul | E107: Argentina | F107: YPF | G107: d. Hydrotreating | H107: d.2 Kerosene Hydrotreating
A108: 2012 | B108: 2011-08-01 | C108: Verificada | D108: ARG - Plaza Huincul | E108: Argentina | F108: YPF | G108: d. Hydrotreating | H108: d.3 Distillate Hydrotreating
A109: 2012 | B109: 2011-08-01 | C109: Verificada | D109: ARG - Plaza Huincul | E109: Argentina | F109: YPF | G109: d. Hydrotreating | H109: d.4 Residual Desulfurization
A110: 2012 | B110: 2011-08-01 | C110: Verificada | D110: ARG - Plaza Huincul | E110: Argentina | F110: YPF | G110: d. Hydrotreating | H110: d.5 Gas Oil Desulfurization
A111: 2012 | B111: 2011-08-01 | C111: Verificada | D111: ARG - Plaza Huincul | E111: Argentina | F111: YPF | G111: e. Hydrogen (k scf/d) | H111: e.1 Hydrogen Generation
A112: 2012 | B112: 2011-08-01 | C112: Verificada | D112: ARG - Plaza Huincul | E112: Argentina | F112: YPF | G112: e. Hydrogen (k scf/d) | H112: e.2 Purification
A113: 2012 | B113: 2011-08-01 | C113: Verificada | D113: ARG - Plaza Huincul | E113: Argentina | F113: YPF | G113: f. Other | H113: f.1 Aromatic Solvent Extraction
A114: 2012 | B114: 2011-08-01 | C114: Verificada | D114: ARG - Plaza Huincul | E114: Argentina | F114: YPF | G114: f. Other | H114: f.2 Other Aromatic Process
A115: 2012 | B115: 2011-08-01 | C115: Verificada | D115: ARG - Plaza Huincul | E115: Argentina | F115: YPF | G115: f. Other | H115: f.3 C4 Isomerization
A116: 2012 | B116: 2011-08-01 | C116: Verificada | D116: ARG - Plaza Huincul | E116: Argentina | F116: YPF | G116: f. Other | H116: f.4 Solvent Desaphalting
A117: 2012 | B117: 2011-08-01 | C117: Verificada | D117: ARG - Plaza Huincul | E117: Argentina | F117: YPF | G117: f. Other | H117: f.5 Lubes & Waxes
A118: 2012 | B118: 2011-08-01 | C118: Verificada | D118: ARG - Plaza Huincul | E118: Argentina | F118: YPF | G118: f. Other | H118: f.6 Asphalt & Bitumen Manufacture
A119: 2012 | B119: 2011-08-01 | C119: Verificada | D119: ARG - Plaza Huincul | E119: Argentina | F119: YPF | G119: f. Other | H119: f.7 Sulfur Recovery Unit (tonnes/day)
A120: 2012 | B120: 2011-08-01 | C120: Verificada | D120: ARG - Plaza Huincul | E120: Argentina | F120: YPF | G120: g. Fractionation | H120: g.1 Propane/Propylene Splitter
A121: 2012 | B121: 2011-08-01 | C121: Verificada | D121: ARG - Plaza Huincul | E121: Argentina | F121: YPF | G121: g. Fractionation | H121: g.2 Deisobutanizer
A122: 2012 | B122: 2011-08-01 | C122: Verificada | D122: ARG - Plaza Huincul | E122: Argentina | F122: YPF | G122: g. Fractionation | H122: g.3 Deisopentanizer
A123: 2012 | B123: 2011-08-01 | C123: Verificada | D123: ARG - Plaza Huincul | E123: Argentina | F123: YPF | G123: g. Fractionation | H123: g.4 Deisohexanizer
A124: 2012 | B124: 2011-08-01 | C124: Verificada | D124: ARG - Plaza Huincul | E124: Argentina | F124: YPF | G124: g. Fractionation | H124: g.5 Alkylate Splitter
A125: 2012 | B125: 2011-08-01 | C125: Verificada | D125: ARG - Plaza Huincul | E125: Argentina | F125: YPF | G125: g. Fractionation | H125: g.6 Reformate Splitter
A126: 2012 | B126: 2011-08-01 | C126: Verificada | D126: ARG - Plaza Huincul | E126: Argentina | F126: YPF | G126: g. Fractionation | H126: g.7 Cat Cracked Gasoline Splitter
A127: 2012 | B127: 2011-08-01 | C127: Verificada | D127: ARG - Plaza Huincul | E127: Argentina | F127: YPF | G127: h. Oxygenates | H127: h.1 MTBE
A128: 2012 | B128: 2011-08-01 | C128: Verificada | D128: ARG - Plaza Huincul | E128: Argentina | F128: YPF | G128: h. Oxygenates | H128: h.2 TAME
A129: 2012 | B129: 2011-08-01 | C129: Verificada | D129: ARG - Plaza Huincul | E129: Argentina | F129: YPF | G129: i. Tank Storage (bbl) | H129: i.1 Crude Oil | I129: 300000
A130: 2012 | B130: 2011-08-01 | C130: Verificada | D130: ARG - Plaza Huincul | E130: Argentina | F130: YPF | G130: i. Tank Storage (bbl) | H130: i.2 Gasoline | I130: 91000
A131: 2012 | B131: 2011-08-01 | C131: Verificada | D131: ARG - Plaza Huincul | E131: Argentina | F131: YPF | G131: i. Tank Storage (bbl) | H131: i.3 Diesel | I131: 153000
A132: 2012 | B132: 2011-08-01 | C132: Verificada | D132: ARG - Plaza Huincul | E132: Argentina | F132: YPF | G132: j. Conversion Rate | H132: j.1 Conversion Rate | I132: 0
A133: 2012 | B133: 2011-08-01 | C133: Verificada | D133: ARG - Plaza Huincul | E133: Argentina | F133: YPF | G133: k. Desulfurization Rate (%) | H133: k.1 Desulfurization Rate (%) | I133: =SUM(I106:I110)/I90 -> 0
A134: 2012 | B134: 2011-08-01 | C134: Verificada | D134: ARG - Campana | E134: Argentina | F134: Axion Energy | G134: a. Crude Distillation | H134: a.1 Atmospheric Crude Distillation | I134: 90000
A135: 2012 | B135: 2011-08-01 | C135: Verificada | D135: ARG - Campana | E135: Argentina | F135: Axion Energy | G135: a. Crude Distillation | H135: a.2 Vacuum Distillation | I135: 50000
A136: 2012 | B136: 2011-08-01 | C136: Verificada | D136: ARG - Campana | E136: Argentina | F136: Axion Energy | G136: b. Conversion | H136: b.1 Catalytic Cracking | I136: 27900
A137: 2012 | B137: 2011-08-01 | C137: Verificada | D137: ARG - Campana | E137: Argentina | F137: Axion Energy | G137: b. Conversion | H137: b.2 Resid Cat Cracking
A138: 2012 | B138: 2011-08-01 | C138: Verificada | D138: ARG - Campana | E138: Argentina | F138: Axion Energy | G138: b. Conversion | H138: b.3 Hydrocracking (Mild Conversion)
A139: 2012 | B139: 2011-08-01 | C139: Verificada | D139: ARG - Campana | E139: Argentina | F139: Axion Energy | G139: b. Conversion | H139: b.4 Coking -- Delayed | I139: 25000
A140: 2012 | B140: 2011-08-01 | C140: Verificada | D140: ARG - Campana | E140: Argentina | F140: Axion Energy | G140: b. Conversion | H140: b.5 Coking -- Fluid
A141: 2012 | B141: 2011-08-01 | C141: Verificada | D141: ARG - Campana | E141: Argentina | F141: Axion Energy | G141: b. Conversion | H141: b.6 Visbreaking
A142: 2012 | B142: 2011-08-01 | C142: Verificada | D142: ARG - Campana | E142: Argentina | F142: Axion Energy | G142: c. Upgrading | H142: c.1 H-Oil
A143: 2012 | B143: 2011-08-01 | C143: Verificada | D143: ARG - Campana | E143: Argentina | F143: Axion Energy | G143: c. Upgrading | H143: c.2 HDH
A144: 2012 | B144: 2011-08-01 | C144: Verificada | D144: ARG - Campana | E144: Argentina | F144: Axion Energy | G144: c. Upgrading | H144: c.3 Alkylation (Product basis)
A145: 2012 | B145: 2011-08-01 | C145: Verificada | D145: ARG - Campana | E145: Argentina | F145: Axion Energy | G145: c. Upgrading | H145: c.4 Polymerization
A146: 2012 | B146: 2011-08-01 | C146: Verificada | D146: ARG - Campana | E146: Argentina | F146: Axion Energy | G146: c. Upgrading | H146: c.5 C5/C6 Isomerization
A147: 2012 | B147: 2011-08-01 | C147: Verificada | D147: ARG - Campana | E147: Argentina | F147: Axion Energy | G147: c. Upgrading | H147: c.6 Catalytic Reforming -- Low Pressure
A148: 2012 | B148: 2011-08-01 | C148: Verificada | D148: ARG - Campana | E148: Argentina | F148: Axion Energy | G148: c. Upgrading | H148: c.7 Catalytic Reforming -- Medium Pressure | I148: 11000
A149: 2012 | B149: 2011-08-01 | C149: Verificada | D149: ARG - Campana | E149: Argentina | F149: Axion Energy | G149: c. Upgrading | H149: c.8 Catalytic Reforming -- High Pressure
A150: 2012 | B150: 2011-08-01 | C150: Verificada | D150: ARG - Campana | E150: Argentina | F150: Axion Energy | G150: d. Hydrotreating | H150: d.1 Gasoline/Naphtha Hydrotreating | I150: 17700
A151: 2012 | B151: 2011-08-01 | C151: Verificada | D151: ARG - Campana | E151: Argentina | F151: Axion Energy | G151: d. Hydrotreating | H151: d.2 Kerosene Hydrotreating
A152: 2012 | B152: 2011-08-01 | C152: Verificada | D152: ARG - Campana | E152: Argentina | F152: Axion Energy | G152: d. Hydrotreating | H152: d.3 Distillate Hydrotreating | I152: 14300
A153: 2012 | B153: 2011-08-01 | C153: Verificada | D153: ARG - Campana | E153: Argentina | F153: Axion Energy | G153: d. Hydrotreating | H153: d.4 Residual Desulfurization
A154: 2012 | B154: 2011-08-01 | C154: Verificada | D154: ARG - Campana | E154: Argentina | F154: Axion Energy | G154: d. Hydrotreating | H154: d.5 Gas Oil Desulfurization
A155: 2012 | B155: 2011-08-01 | C155: Verificada | D155: ARG - Campana | E155: Argentina | F155: Axion Energy | G155: e. Hydrogen (k scf/d) | H155: e.1 Hydrogen Generation
A156: 2012 | B156: 2011-08-01 | C156: Verificada | D156: ARG - Campana | E156: Argentina | F156: Axion Energy | G156: e. Hydrogen (k scf/d) | H156: e.2 Purification
A157: 2012 | B157: 2011-08-01 | C157: Verificada | D157: ARG - Campana | E157: Argentina | F157: Axion Energy | G157: f. Other | H157: f.1 Aromatic Solvent Extraction
A158: 2012 | B158: 2011-08-01 | C158: Verificada | D158: ARG - Campana | E158: Argentina | F158: Axion Energy | G158: f. Other | H158: f.2 Other Aromatic Process
A159: 2012 | B159: 2011-08-01 | C159: Verificada | D159: ARG - Campana | E159: Argentina | F159: Axion Energy | G159: f. Other | H159: f.3 C4 Isomerization
A160: 2012 | B160: 2011-08-01 | C160: Verificada | D160: ARG - Campana | E160: Argentina | F160: Axion Energy | G160: f. Other | H160: f.4 Solvent Desaphalting
A161: 2012 | B161: 2011-08-01 | C161: Verificada | D161: ARG - Campana | E161: Argentina | F161: Axion Energy | G161: f. Other | H161: f.5 Lubes & Waxes
A162: 2012 | B162: 2011-08-01 | C162: Verificada | D162: ARG - Campana | E162: Argentina | F162: Axion Energy | G162: f. Other | H162: f.6 Asphalt & Bitumen Manufacture
A163: 2012 | B163: 2011-08-01 | C163: Verificada | D163: ARG - Campana | E163: Argentina | F163: Axion Energy | G163: f. Other | H163: f.7 Sulfur Recovery Unit (tonnes/day)
A164: 2012 | B164: 2011-08-01 | C164: Verificada | D164: ARG - Campana | E164: Argentina | F164: Axion Energy | G164: g. Fractionation | H164: g.1 Propane/Propylene Splitter
A165: 2012 | B165: 2011-08-01 | C165: Verificada | D165: ARG - Campana | E165: Argentina | F165: Axion Energy | G165: g. Fractionation | H165: g.2 Deisobutanizer
A166: 2012 | B166: 2011-08-01 | C166: Verificada | D166: ARG - Campana | E166: Argentina | F166: Axion Energy | G166: g. Fractionation | H166: g.3 Deisopentanizer
A167: 2012 | B167: 2011-08-01 | C167: Verificada | D167: ARG - Campana | E167: Argentina | F167: Axion Energy | G167: g. Fractionation | H167: g.4 Deisohexanizer
A168: 2012 | B168: 2011-08-01 | C168: Verificada | D168: ARG - Campana | E168: Argentina | F168: Axion Energy | G168: g. Fractionation | H168: g.5 Alkylate Splitter
A169: 2012 | B169: 2011-08-01 | C169: Verificada | D169: ARG - Campana | E169: Argentina | F169: Axion Energy | G169: g. Fractionation | H169: g.6 Reformate Splitter
A170: 2012 | B170: 2011-08-01 | C170: Verificada | D170: ARG - Campana | E170: Argentina | F170: Axion Energy | G170: g. Fractionation | H170: g.7 Cat Cracked Gasoline Splitter | I170: 30000
A171: 2012 | B171: 2011-08-01 | C171: Verificada | D171: ARG - Campana | E171: Argentina | F171: Axion Energy | G171: h. Oxygenates | H171: h.1 MTBE | I171: 1400
A172: 2012 | B172: 2011-08-01 | C172: Verificada | D172: ARG - Campana | E172: Argentina | F172: Axion Energy | G172: h. Oxygenates | H172: h.2 TAME | I172: 1600
A173: 2012 | B173: 2011-08-01 | C173: Verificada | D173: ARG - Campana | E173: Argentina | F173: Axion Energy | G173: i. Tank Storage (bbl) | H173: i.1 Crude Oil | I173: 1400000
A174: 2012 | B174: 2011-08-01 | C174: Verificada | D174: ARG - Campana | E174: Argentina | F174: Axion Energy | G174: i. Tank Storage (bbl) | H174: i.2 Gasoline | I174: 600000
A175: 2012 | B175: 2011-08-01 | C175: Verificada | D175: ARG - Campana | E175: Argentina | F175: Axion Energy | G175: i. Tank Storage (bbl) | H175: i.3 Diesel | I175: 753000
A176: 2012 | B176: 2011-08-01 | C176: Verificada | D176: ARG - Campana | E176: Argentina | F176: Axion Energy | G176: j. Conversion Rate | H176: j.1 Conversion Rate | I176: 1.2444
A177: 2012 | B177: 2011-08-01 | C177: Verificada | D177: ARG - Campana | E177: Argentina | F177: Axion Energy | G177: k. Desulfurization Rate (%) | H177: k.1 Desulfurization Rate (%) | I177: =SUM(I150:I154)/I134 -> 0.3555555556
A178: 2012 | B178: 2011-12-01 | C178: Verificada | D178: BOL - Gualberto Villarroel | E178: Bolivia | F178: YPFB | G178: a. Crude Distillation | H178: a.1 Atmospheric Crude Distillation | I178: =27300+12500 -> 39800
A179: 2012 | B179: 2011-12-01 | C179: Verificada | D179: BOL - Gualberto Villarroel | E179: Bolivia | F179: YPFB | G179: a. Crude Distillation | H179: a.2 Vacuum Distillation | I179: 2200
A180: 2012 | B180: 2011-12-01 | C180: Verificada | D180: BOL - Gualberto Villarroel | E180: Bolivia | F180: YPFB | G180: b. Conversion | H180: b.1 Catalytic Cracking
A181: 2012 | B181: 2011-12-01 | C181: Verificada | D181: BOL - Gualberto Villarroel | E181: Bolivia | F181: YPFB | G181: b. Conversion | H181: b.2 Resid Cat Cracking
A182: 2012 | B182: 2011-12-01 | C182: Verificada | D182: BOL - Gualberto Villarroel | E182: Bolivia | F182: YPFB | G182: b. Conversion | H182: b.3 Hydrocracking (Mild Conversion)
A183: 2012 | B183: 2011-12-01 | C183: Verificada | D183: BOL - Gualberto Villarroel | E183: Bolivia | F183: YPFB | G183: b. Conversion | H183: b.4 Coking -- Delayed
A184: 2012 | B184: 2011-12-01 | C184: Verificada | D184: BOL - Gualberto Villarroel | E184: Bolivia | F184: YPFB | G184: b. Conversion | H184: b.5 Coking -- Fluid
A185: 2012 | B185: 2011-12-01 | C185: Verificada | D185: BOL - Gualberto Villarroel | E185: Bolivia | F185: YPFB | G185: b. Conversion | H185: b.6 Visbreaking
A186: 2012 | B186: 2011-12-01 | C186: Verificada | D186: BOL - Gualberto Villarroel | E186: Bolivia | F186: YPFB | G186: c. Upgrading | H186: c.1 H-Oil
A187: 2012 | B187: 2011-12-01 | C187: Verificada | D187: BOL - Gualberto Villarroel | E187: Bolivia | F187: YPFB | G187: c. Upgrading | H187: c.2 HDH
A188: 2012 | B188: 2011-12-01 | C188: Verificada | D188: BOL - Gualberto Villarroel | E188: Bolivia | F188: YPFB | G188: c. Upgrading | H188: c.3 Alkylation (Product basis)
A189: 2012 | B189: 2011-12-01 | C189: Verificada | D189: BOL - Gualberto Villarroel | E189: Bolivia | F189: YPFB | G189: c. Upgrading | H189: c.4 Polymerization
A190: 2012 | B190: 2011-12-01 | C190: Verificada | D190: BOL - Gualberto Villarroel | E190: Bolivia | F190: YPFB | G190: c. Upgrading | H190: c.5 C5/C6 Isomerization
A191: 2012 | B191: 2011-12-01 | C191: Verificada | D191: BOL - Gualberto Villarroel | E191: Bolivia | F191: YPFB | G191: c. Upgrading | H191: c.6 Catalytic Reforming -- Low Pressure | I191: 8172
A192: 2012 | B192: 2011-12-01 | C192: Verificada | D192: BOL - Gualberto Villarroel | E192: Bolivia | F192: YPFB | G192: c. Upgrading | H192: c.7 Catalytic Reforming -- Medium Pressure
A193: 2012 | B193: 2011-12-01 | C193: Verificada | D193: BOL - Gualberto Villarroel | E193: Bolivia | F193: YPFB | G193: c. Upgrading | H193: c.8 Catalytic Reforming -- High Pressure
A194: 2012 | B194: 2011-12-01 | C194: Verificada | D194: BOL - Gualberto Villarroel | E194: Bolivia | F194: YPFB | G194: d. Hydrotreating | H194: d.1 Gasoline/Naphtha Hydrotreating | I194: 8172
A195: 2012 | B195: 2011-12-01 | C195: Verificada | D195: BOL - Gualberto Villarroel | E195: Bolivia | F195: YPFB | G195: d. Hydrotreating | H195: d.2 Kerosene Hydrotreating
A196: 2012 | B196: 2011-12-01 | C196: Verificada | D196: BOL - Gualberto Villarroel | E196: Bolivia | F196: YPFB | G196: d. Hydrotreating | H196: d.3 Distillate Hydrotreating
A197: 2012 | B197: 2011-12-01 | C197: Verificada | D197: BOL - Gualberto Villarroel | E197: Bolivia | F197: YPFB | G197: d. Hydrotreating | H197: d.4 Residual Desulfurization
A198: 2012 | B198: 2011-12-01 | C198: Verificada | D198: BOL - Gualberto Villarroel | E198: Bolivia | F198: YPFB | G198: d. Hydrotreating | H198: d.5 Gas Oil Desulfurization
A199: 2012 | B199: 2011-12-01 | C199: Verificada | D199: BOL - Gualberto Villarroel | E199: Bolivia | F199: YPFB | G199: e. Hydrogen (k scf/d) | H199: e.1 Hydrogen Generation
A200: 2012 | B200: 2011-12-01 | C200: Verificada | D200: BOL - Gualberto Villarroel | E200: Bolivia | F200: YPFB | G200: e. Hydrogen (k scf/d) | H200: e.2 Purification
... 1869 more rows
